[Event "*** Titled Tuesday 3|2 Blitz"]
[Site "Chess.com"]
[Date "2016.01.05"]
[Round "6"]
[White "Anton_Demchenko"]
[Black "Tesla37"]
[Result "1-0"]
[WhiteElo "2678"]
[BlackElo "2535"]
[TimeControl "180+2"]
[EndTime "12:13:25 PST"]
[Termination "Anton_Demchenko won on time"]

1. e4 {[%clk 0:03:01.9]} 1... c5 {[%clk 0:02:59.7]} 2. Nf3 {[%clk 0:03:03]} 2...
e6 {[%clk 0:03:00.9]} 3. d4 {[%clk 0:03:04.1]} 3... cxd4 {[%clk 0:03:01.6]} 4.
Nxd4 {[%clk 0:03:06]} 4... Nc6 {[%clk 0:03:03.2]} 5. Nc3 {[%clk 0:03:06.8]} 5...
Qc7 {[%clk 0:03:04.2]} 6. Be3 {[%clk 0:02:57.7]} 6... a6 {[%clk 0:03:03.2]} 7.
Qf3 {[%clk 0:02:58.7]} 7... d6 {[%clk 0:03:01.1]} 8. O-O-O {[%clk 0:02:58.6]}
8... Bd7 {[%clk 0:03:00.5]} 9. Qg3 {[%clk 0:02:54.9]} 9... Rc8 {[%clk
0:02:59.8]} 10. Nxc6 {[%clk 0:02:51.4]} 10... Bxc6 {[%clk 0:02:59.7]} 11. f3
{[%clk 0:02:52.8]} 11... b5 {[%clk 0:02:58.4]} 12. Bd3 {[%clk 0:02:53.3]} 12...
Nf6 {[%clk 0:02:58.3]} 13. Kb1 {[%clk 0:02:52.5]} 13... Nd7 {[%clk 0:02:56.9]}
14. Ne2 {[%clk 0:02:50.2]} 14... Ne5 {[%clk 0:02:55.9]} 15. Nd4 {[%clk
0:02:50.7]} 15... Bb7 {[%clk 0:02:55.7]} 16. Be2 {[%clk 0:02:47.3]} 16... h5
{[%clk 0:02:49.6]} 17. h4 {[%clk 0:02:40.5]} 17... g6 {[%clk 0:02:48.5]} 18. c3
{[%clk 0:02:32.2]} 18... Nc4 {[%clk 0:02:34.1]} 19. Bxc4 {[%clk 0:02:25.8]}
19... Qxc4 {[%clk 0:02:33]} 20. Bg5 {[%clk 0:02:11.3]} 20... e5 {[%clk
0:02:13.8]} 21. Nc2 {[%clk 0:01:56.2]} 21... Qe6 {[%clk 0:02:11.7]} 22. Rd2
{[%clk 0:01:50.6]} 22... f6 {[%clk 0:02:08.4]} 23. Be3 {[%clk 0:01:50.8]} 23...
f5 {[%clk 0:02:05.6]} 24. exf5 {[%clk 0:01:37.9]} 24... gxf5 {[%clk 0:02:03.3]}
25. Bg5 {[%clk 0:01:33.7]} 25... f4 {[%clk 0:02:03.1]} 26. Qf2 {[%clk
0:01:34.2]} 26... Rh7 {[%clk 0:02:01.2]} 27. Re1 {[%clk 0:01:33.1]} 27... Qf5
{[%clk 0:01:55.6]} 28. Ka1 {[%clk 0:01:34.2]} 28... Kf7 {[%clk 0:01:53]} 29. Qb6
{[%clk 0:01:20.6]} 29... Kg8 {[%clk 0:01:50.4]} 30. Nb4 {[%clk 0:01:21.6]} 30...
Rd7 {[%clk 0:01:36.5]} 31. Red1 {[%clk 0:01:21.6]} 31... Qe6 {[%clk 0:01:19.5]}
32. Qf2 {[%clk 0:01:01.3]} 32... d5 {[%clk 0:01:16.6]} 33. g3 {[%clk 0:00:58.3]}
33... a5 {[%clk 0:00:56]} 34. Nd3 {[%clk 0:00:56.8]} 34... b4 {[%clk 0:00:53.4]}
35. cxb4 {[%clk 0:00:57]} 35... axb4 {[%clk 0:00:53.4]} 36. gxf4 {[%clk
0:00:58.4]} 36... e4 {[%clk 0:00:54.6]} 37. Ne5 {[%clk 0:00:59.4]} 37... Rdc7
{[%clk 0:00:54.2]} 38. Qg1 {[%clk 0:00:57.3]} 38... Bg7 {[%clk 0:00:31.2]} 39.
fxe4 {[%clk 0:00:53.7]} 39... dxe4 {[%clk 0:00:31.4]} 40. Rd8+ {[%clk
0:00:54.3]} 40... Rxd8 {[%clk 0:00:30.7]} 41. Bxd8 {[%clk 0:00:48.6]} 41... Rc2
{[%clk 0:00:10.3]} 42. Rd7 {[%clk 0:00:35.2]} 42... Qxd7 {[%clk 0:00:05.4]} 43.
Nxd7 {[%clk 0:00:37.1]} 43... e3 {[%clk 0:00:04.3]} 44. Qxe3 {[%clk 0:00:28.8]}
44... Rxb2 {[%clk 0:00:04]} 45. Nf6+ {[%clk 0:00:28.2]} 1-0

[Event "*** Titled Tuesday 3|2 Blitz"]
[Site "Chess.com"]
[Date "2016.01.05"]
[Round "6"]
[White "alex_zapata"]
[Black "nonsopolo1"]
[Result "0-1"]
[WhiteElo "2184"]
[BlackElo "2068"]
[TimeControl "180+2"]
[EndTime "12:13:27 PST"]
[Termination "nonsopolo1 won on time"]

1. e4 {[%clk 0:03:01.9]} 1... c5 {[%clk 0:03:00]} 2. Nf3 {[%clk 0:03:02.8]} 2...
d6 {[%clk 0:02:58]} 3. d4 {[%clk 0:03:03.7]} 3... cxd4 {[%clk 0:02:59]} 4. Nxd4
{[%clk 0:03:05.6]} 4... Nf6 {[%clk 0:02:59.7]} 5. Nc3 {[%clk 0:03:06.7]} 5... g6
{[%clk 0:03:00.6]} 6. Be3 {[%clk 0:03:07.2]} 6... Bg7 {[%clk 0:03:01.6]} 7. Bc4
{[%clk 0:03:08.7]} 7... O-O {[%clk 0:03:02.4]} 8. f3 {[%clk 0:03:10.1]} 8... Nc6
{[%clk 0:03:03.5]} 9. Qd2 {[%clk 0:03:11.5]} 9... Bd7 {[%clk 0:03:04.5]} 10. h4
{[%clk 0:03:12.5]} 10... h5 {[%clk 0:02:54.8]} 11. O-O-O {[%clk 0:03:10.1]}
11... Qa5 {[%clk 0:02:55]} 12. g4 {[%clk 0:03:07]} 12... Rfc8 {[%clk 0:02:51.9]}
13. Bb3 {[%clk 0:03:05.6]} 13... Ne5 {[%clk 0:02:49.9]} 14. gxh5 {[%clk
0:02:58.5]} 14... Nxh5 {[%clk 0:02:47.9]} 15. Nde2 {[%clk 0:02:47.7]} 15... Nxf3
{[%clk 0:02:43.6]} 16. Qd3 {[%clk 0:02:26.5]} 16... Ne5 {[%clk 0:02:41.2]} 17.
Qd2 {[%clk 0:02:27.4]} 17... Nc4 {[%clk 0:02:34.5]} 18. Bxc4 {[%clk 0:02:11.2]}
18... Rxc4 {[%clk 0:02:34.6]} 19. Bh6 {[%clk 0:02:12.7]} 19... Be6 {[%clk
0:02:27.3]} 20. Bxg7 {[%clk 0:02:07.4]} 20... Kxg7 {[%clk 0:02:27.8]} 21. Nd4
{[%clk 0:01:56.3]} 21... Qe5 {[%clk 0:02:11.6]} 22. Nxe6+ {[%clk 0:01:34.8]}
22... Qxe6 {[%clk 0:02:11.3]} 23. Rhg1 {[%clk 0:01:31.2]} 23... Rac8 {[%clk
0:02:07.9]} 24. Rg5 {[%clk 0:01:31.6]} 24... Qh3 {[%clk 0:01:21.7]} 25. Rdg1
{[%clk 0:01:08.1]} 25... Qxh4 {[%clk 0:01:17.2]} 26. Qe2 {[%clk 0:00:39.1]}
26... Nf6 {[%clk 0:01:14.7]} 27. Qg2 {[%clk 0:00:25.4]} 27... Kf8 {[%clk
0:00:38.5]} 28. e5 {[%clk 0:00:23.1]} 28... dxe5 {[%clk 0:00:36.3]} 29. Qxb7
{[%clk 0:00:23.9]} 29... Qf4+ {[%clk 0:00:34.8]} 30. Kb1 {[%clk 0:00:24.9]}
30... e4 {[%clk 0:00:35.5]} 31. R5g2 {[%clk 0:00:11.2]} 31... Rxc3 {[%clk
0:00:34.6]} 32. bxc3 {[%clk 0:00:08.9]} 32... Rb8 {[%clk 0:00:34.9]} 33. Qb3
{[%clk 0:00:09.3]} 33... Rxb3+ {[%clk 0:00:34.7]} 34. axb3 {[%clk 0:00:11.2]}
34... e3 {[%clk 0:00:35]} 35. Re1 {[%clk 0:00:12.7]} 35... Nd5 {[%clk
0:00:28.9]} 36. c4 {[%clk 0:00:08.1]} 36... Qe4 {[%clk 0:00:26.2]} 37. Rg3
{[%clk 0:00:05.9]} 37... Nc3+ {[%clk 0:00:24.9]} 38. Kb2 {[%clk 0:00:06.6]}
38... Qd4 {[%clk 0:00:24.6]} 0-1

[Event "*** Titled Tuesday 3|2 Blitz"]
[Site "Chess.com"]
[Date "2016.01.05"]
[Round "6"]
[White "gumersindo"]
[Black "Maitreia"]
[Result "1-0"]
[WhiteElo "2296"]
[BlackElo "2439"]
[TimeControl "180+2"]
[EndTime "12:13:28 PST"]
[Termination "gumersindo won by checkmate"]

1. d4 {[%clk 0:03:01.9]} 1... Nf6 {[%clk 0:03:00.7]} 2. c4 {[%clk 0:03:02.6]}
2... e5 {[%clk 0:03:01.9]} 3. dxe5 {[%clk 0:03:02.7]} 3... Ng4 {[%clk 0:03:03]}
4. Bf4 {[%clk 0:03:04.2]} 4... Bb4+ {[%clk 0:03:03.1]} 5. Nd2 {[%clk 0:03:03.2]}
5... Nc6 {[%clk 0:03:03]} 6. Nf3 {[%clk 0:03:02.9]} 6... Qe7 {[%clk 0:03:04.5]}
7. e3 {[%clk 0:03:03.6]} 7... Ngxe5 {[%clk 0:03:05.7]} 8. Nxe5 {[%clk
0:03:04.7]} 8... Nxe5 {[%clk 0:03:07.6]} 9. Be2 {[%clk 0:03:06]} 9... O-O {[%clk
0:03:08.1]} 10. O-O {[%clk 0:03:05]} 10... Bxd2 {[%clk 0:03:09.6]} 11. Qxd2
{[%clk 0:03:05.8]} 11... d6 {[%clk 0:03:11.5]} 12. Qc3 {[%clk 0:03:03.3]} 12...
b6 {[%clk 0:03:11.5]} 13. b4 {[%clk 0:03:02.7]} 13... a5 {[%clk 0:03:12.6]} 14.
a3 {[%clk 0:03:03.5]} 14... c5 {[%clk 0:02:51.8]} 15. bxc5 {[%clk 0:02:52.2]}
15... bxc5 {[%clk 0:02:51.8]} 16. Rfd1 {[%clk 0:02:52.7]} 16... Bb7 {[%clk
0:02:46.3]} 17. Ra2 {[%clk 0:02:43.1]} 17... f6 {[%clk 0:02:39]} 18. Rad2 {[%clk
0:02:42.8]} 18... Rfd8 {[%clk 0:02:39.8]} 19. Rb1 {[%clk 0:02:26.9]} 19... Be4
{[%clk 0:02:34.6]} 20. Rb6 {[%clk 0:02:21.9]} 20... a4 {[%clk 0:02:31.2]} 21. f3
{[%clk 0:02:18.3]} 21... Bg6 {[%clk 0:02:26.2]} 22. Bd1 {[%clk 0:02:07.2]} 22...
Bf7 {[%clk 0:02:26.3]} 23. Be2 {[%clk 0:02:02.4]} 23... g5 {[%clk 0:02:16.2]}
24. Bg3 {[%clk 0:02:01.8]} 24... Rab8 {[%clk 0:02:12]} 25. Rdb2 {[%clk
0:02:00.3]} 25... Rxb6 {[%clk 0:02:11.7]} 26. Rxb6 {[%clk 0:02:01.1]} 26... Be6
{[%clk 0:02:02.9]} 27. h3 {[%clk 0:01:52]} 27... Qf7 {[%clk 0:02:00.5]} 28. Bxe5
{[%clk 0:01:50.2]} 28... dxe5 {[%clk 0:01:58.6]} 29. Ra6 {[%clk 0:01:40.3]}
29... Qd7 {[%clk 0:01:57.7]} 30. Kf2 {[%clk 0:01:35.7]} 30... Kg7 {[%clk
0:01:55.2]} 31. Qa5 {[%clk 0:01:33.4]} 31... Bf7 {[%clk 0:01:45.1]} 32. Qxc5
{[%clk 0:01:25.8]} 32... Rc8 {[%clk 0:01:13.4]} 33. Qb6 {[%clk 0:01:23.1]} 33...
Qe7 {[%clk 0:00:59.6]} 34. Rxa4 {[%clk 0:01:13.5]} 34... Rc7 {[%clk 0:00:47.4]}
35. Rb4 {[%clk 0:01:04.3]} 35... e4 {[%clk 0:00:46.3]} 36. fxe4 {[%clk
0:00:55.1]} 36... Rd7 {[%clk 0:00:43]} 37. Qc6 {[%clk 0:00:37]} 37... Rd2 {[%clk
0:00:42.4]} 38. Rb7 {[%clk 0:00:34.3]} 38... Qe5 {[%clk 0:00:36.6]} 39. Qc7
{[%clk 0:00:30]} 39... Qe6 {[%clk 0:00:35.8]} 40. Ke1 {[%clk 0:00:21.3]} 40...
Ra2 {[%clk 0:00:27.5]} 41. Bh5 {[%clk 0:00:22]} 41... Ra1+ {[%clk 0:00:17.6]}
42. Kf2 {[%clk 0:00:22.5]} 42... Ra2+ {[%clk 0:00:15.9]} 43. Kf3 {[%clk
0:00:20.7]} 43... g4+ {[%clk 0:00:16.1]} 44. hxg4 {[%clk 0:00:20.5]} 44... Kh6
{[%clk 0:00:10.5]} 45. Qxf7 {[%clk 0:00:20.8]} 45... Qe5 {[%clk 0:00:06]} 46.
Qxh7+ {[%clk 0:00:21.7]} 46... Kg5 {[%clk 0:00:07.5]} 47. Rg7+ {[%clk
0:00:21.9]} 47... Kh4 {[%clk 0:00:09.1]} 48. Bg6+ {[%clk 0:00:23.4]} 48... Kg5
{[%clk 0:00:10]} 49. Qh5# {[%clk 0:00:24.5]} 1-0

[Event "*** Titled Tuesday 3|2 Blitz"]
[Site "Chess.com"]
[Date "2016.01.05"]
[Round "6"]
[White "FairChess_on_YouTube"]
[Black "LyonBeast"]
[Result "1-0"]
[WhiteElo "2779"]
[BlackElo "2779"]
[TimeControl "180+2"]
[EndTime "12:13:46 PST"]
[Termination "FairChess_on_YouTube won by resignation"]

1. d4 {[%clk 0:03:01.9]} 1... Nf6 {[%clk 0:03:00.2]} 2. c4 {[%clk 0:03:00.9]}
2... g6 {[%clk 0:03:01]} 3. Nf3 {[%clk 0:03:02]} 3... Bg7 {[%clk 0:03:00.3]} 4.
e3 {[%clk 0:03:03.6]} 4... O-O {[%clk 0:02:59.4]} 5. Be2 {[%clk 0:03:04.9]} 5...
b6 {[%clk 0:02:59.3]} 6. O-O {[%clk 0:03:05.2]} 6... Bb7 {[%clk 0:02:59.8]} 7.
Nc3 {[%clk 0:03:06.4]} 7... d5 {[%clk 0:02:58.3]} 8. cxd5 {[%clk 0:03:08]} 8...
Nxd5 {[%clk 0:02:58.4]} 9. Bd2 {[%clk 0:03:09.6]} 9... e6 {[%clk 0:02:53.8]} 10.
Rc1 {[%clk 0:03:09.2]} 10... Nd7 {[%clk 0:02:49]} 11. Nxd5 {[%clk 0:02:58.5]}
11... Bxd5 {[%clk 0:02:49.2]} 12. Bc4 {[%clk 0:02:54.1]} 12... Bxc4 {[%clk
0:02:40.7]} 13. Rxc4 {[%clk 0:02:54.7]} 13... c5 {[%clk 0:02:42.6]} 14. dxc5
{[%clk 0:02:47]} 14... Nxc5 {[%clk 0:02:44.5]} 15. Bc3 {[%clk 0:02:38.3]} 15...
Bxc3 {[%clk 0:02:26.3]} 16. Rxc3 {[%clk 0:02:38.5]} 16... Qxd1 {[%clk
0:02:09.2]} 17. Rxd1 {[%clk 0:02:39.4]} 17... Rfd8 {[%clk 0:02:02.2]} 18. Rd4
{[%clk 0:02:22.4]} 18... f6 {[%clk 0:01:42.3]} 19. Kf1 {[%clk 0:02:19.9]} 19...
e5 {[%clk 0:01:43.1]} 20. Rxd8+ {[%clk 0:02:18.1]} 20... Rxd8 {[%clk 0:01:45]}
21. Ke2 {[%clk 0:02:19.5]} 21... Rd7 {[%clk 0:01:39.9]} 22. Ne1 {[%clk
0:02:01.9]} 22... Kf7 {[%clk 0:01:39.1]} 23. Nd3 {[%clk 0:02:00.1]} 23... Ne4
{[%clk 0:01:37]} 24. Rc4 {[%clk 0:01:49.9]} 24... Nd6 {[%clk 0:01:36.9]} 25. Rc6
{[%clk 0:01:50.7]} 25... Ke7 {[%clk 0:01:31.2]} 26. Nb4 {[%clk 0:01:47]} 26...
Ne4 {[%clk 0:00:55.8]} 27. Nd3 {[%clk 0:01:27.8]} 27... Rd6 {[%clk 0:00:40.9]}
28. Rc7+ {[%clk 0:01:26.6]} 28... Rd7 {[%clk 0:00:41.8]} 29. Rc6 {[%clk
0:01:27.2]} 29... Rd6 {[%clk 0:00:43.1]} 30. Rc4 {[%clk 0:01:25.8]} 30... Ng5
{[%clk 0:00:43.6]} 31. a4 {[%clk 0:01:21.7]} 31... Ne6 {[%clk 0:00:43]} 32. b4
{[%clk 0:01:19.6]} 32... Kd7 {[%clk 0:00:42.8]} 33. b5 {[%clk 0:01:19.1]} 33...
h5 {[%clk 0:00:34.4]} 34. h4 {[%clk 0:01:16]} 34... Nd8 {[%clk 0:00:34.2]} 35.
Nb4 {[%clk 0:01:08]} 35... Ne6 {[%clk 0:00:35.3]} 36. Na6 {[%clk 0:00:57.7]}
36... Ke8 {[%clk 0:00:34.7]} 37. Rc8+ {[%clk 0:00:54.6]} 37... Rd8 {[%clk
0:00:34.2]} 38. Rc6 {[%clk 0:00:53.7]} 38... Ke7 {[%clk 0:00:32.9]} 39. Nb4
{[%clk 0:00:43.2]} 39... Rd7 {[%clk 0:00:31]} 40. f3 {[%clk 0:00:40.6]} 40...
Nc5 {[%clk 0:00:31.4]} 41. e4 {[%clk 0:00:40.5]} 41... Ne6 {[%clk 0:00:30.2]}
42. Nd5+ {[%clk 0:00:39.3]} 42... Rxd5 {[%clk 0:00:21]} 43. exd5 {[%clk
0:00:40.2]} 43... Nd4+ {[%clk 0:00:22.7]} 44. Ke3 {[%clk 0:00:22.8]} 44... Nxc6
{[%clk 0:00:24.6]} 45. dxc6 {[%clk 0:00:24.3]} 45... f5 {[%clk 0:00:25.6]} 46.
Kd3 {[%clk 0:00:20.5]} 46... Ke6 {[%clk 0:00:26.8]} 47. Kc4 {[%clk 0:00:18.6]}
47... Kd6 {[%clk 0:00:28.1]} 48. g3 {[%clk 0:00:17.9]} 48... Ke6 {[%clk
0:00:16.7]} 49. c7 {[%clk 0:00:16.9]} 49... Kd7 {[%clk 0:00:17.9]} 50. Kd5
{[%clk 0:00:18.5]} 50... f4 {[%clk 0:00:12.7]} 51. gxf4 {[%clk 0:00:16.5]} 1-0

[Event "*** Titled Tuesday 3|2 Blitz"]
[Site "Chess.com"]
[Date "2016.01.05"]
[Round "6"]
[White "GeorgMeier"]
[Black "Zlatan56"]
[Result "0-1"]
[WhiteElo "2672"]
[BlackElo "2597"]
[TimeControl "180+2"]
[EndTime "12:13:55 PST"]
[Termination "Zlatan56 won by resignation"]

1. Nf3 {[%clk 0:03:01.9]} 1... g6 {[%clk 0:03:00.5]} 2. e4 {[%clk 0:03:01.3]}
2... Bg7 {[%clk 0:03:01.9]} 3. d4 {[%clk 0:03:02.1]} 3... d6 {[%clk 0:03:02.9]}
4. Be2 {[%clk 0:02:57.6]} 4... Nf6 {[%clk 0:03:02.5]} 5. Nc3 {[%clk 0:02:59]}
5... O-O {[%clk 0:03:03.9]} 6. O-O {[%clk 0:03:00.1]} 6... a6 {[%clk 0:03:04.5]}
7. Bf4 {[%clk 0:02:58.7]} 7... Nc6 {[%clk 0:03:03.6]} 8. Qc1 {[%clk 0:02:55.6]}
8... Bg4 {[%clk 0:03:00.2]} 9. Rd1 {[%clk 0:02:55.6]} 9... Nd7 {[%clk
0:02:57.6]} 10. e5 {[%clk 0:02:01.2]} 10... Qc8 {[%clk 0:02:47.2]} 11. Qe3
{[%clk 0:01:53.2]} 11... Nb6 {[%clk 0:02:36.3]} 12. b3 {[%clk 0:01:30.8]} 12...
Nb4 {[%clk 0:02:31.1]} 13. Rac1 {[%clk 0:01:28.7]} 13... N4d5 {[%clk 0:02:23.8]}
14. Nxd5 {[%clk 0:01:26.6]} 14... Nxd5 {[%clk 0:02:25.7]} 15. Qd2 {[%clk
0:01:28.3]} 15... Nxf4 {[%clk 0:02:23]} 16. Qxf4 {[%clk 0:01:30.2]} 16... Qf5
{[%clk 0:02:20.4]} 17. Qxf5 {[%clk 0:01:29.3]} 17... Bxf5 {[%clk 0:02:21.8]} 18.
h3 {[%clk 0:01:30.8]} 18... Bh6 {[%clk 0:02:21.6]} 19. g4 {[%clk 0:01:16.4]}
19... Bxc1 {[%clk 0:02:14.3]} 20. Rxc1 {[%clk 0:01:15.9]} 20... Be4 {[%clk
0:02:11.4]} 21. Nd2 {[%clk 0:01:16.8]} 21... Bc6 {[%clk 0:02:11.7]} 22. Bd3
{[%clk 0:01:16.6]} 22... dxe5 {[%clk 0:02:11.8]} 23. dxe5 {[%clk 0:01:17.6]}
23... Rad8 {[%clk 0:02:11]} 24. a4 {[%clk 0:01:15.1]} 24... Rd4 {[%clk
0:02:09.7]} 25. Re1 {[%clk 0:01:13.2]} 25... Rfd8 {[%clk 0:02:07.8]} 26. Re3
{[%clk 0:01:14.1]} 26... Kg7 {[%clk 0:02:04.5]} 27. Kh2 {[%clk 0:01:13.7]} 27...
a5 {[%clk 0:02:00.8]} 28. Kg3 {[%clk 0:01:13.8]} 28... b6 {[%clk 0:02:01.5]} 29.
f4 {[%clk 0:01:05.2]} 29... e6 {[%clk 0:02:02.3]} 30. Nb1 {[%clk 0:00:58.7]}
30... h5 {[%clk 0:01:53.1]} 31. gxh5 {[%clk 0:00:51.4]} 31... gxh5 {[%clk
0:01:55]} 32. Nc3 {[%clk 0:00:52.8]} 32... h4+ {[%clk 0:01:51.8]} 33. Kg4 {[%clk
0:00:53.9]} 33... f5+ {[%clk 0:01:33.1]} 34. Kg5 {[%clk 0:00:43.3]} 34... Kf7
{[%clk 0:01:31.6]} 35. Ne2 {[%clk 0:00:36.8]} 35... Rg8+ {[%clk 0:01:29]} 36.
Kxh4 {[%clk 0:00:35.9]} 36... Rdd8 {[%clk 0:01:27.7]} 37. Ng3 {[%clk 0:00:35.4]}
37... Rg6 {[%clk 0:01:25.7]} 38. Be2 {[%clk 0:00:32.7]} 38... Rh8+ {[%clk
0:01:26.2]} 39. Nh5 {[%clk 0:00:30.5]} 39... Ke7 {[%clk 0:01:25.8]} 40. Rc3
{[%clk 0:00:26]} 40... Kd7 {[%clk 0:01:25.8]} 41. Rg3 {[%clk 0:00:26.4]} 41...
Rxg3 {[%clk 0:01:16.7]} 42. Kxg3 {[%clk 0:00:27.1]} 42... Rg8+ {[%clk
0:01:17.7]} 43. Kh4 {[%clk 0:00:20.4]} 43... Rg2 {[%clk 0:01:17.4]} 44. Bd3
{[%clk 0:00:20.3]} 44... Ke7 {[%clk 0:01:16.1]} 45. Nf6 {[%clk 0:00:21.4]} 45...
Bf3 {[%clk 0:01:16.5]} 46. c3 {[%clk 0:00:17.6]} 46... Bd1 {[%clk 0:01:17]} 47.
Bc4 {[%clk 0:00:18.9]} 47... c6 {[%clk 0:01:04.5]} 48. b4 {[%clk 0:00:15.7]}
48... Bxa4 {[%clk 0:01:03.4]} 49. bxa5 {[%clk 0:00:16.4]} 49... bxa5 {[%clk
0:01:03.8]} 50. Kh5 {[%clk 0:00:17.1]} 50... Bd1+ {[%clk 0:01:04.2]} 51. Kh6
{[%clk 0:00:17.8]} 51... a4 {[%clk 0:01:03.2]} 52. h4 {[%clk 0:00:18]} 52... Bb3
{[%clk 0:01:01]} 0-1

[Event "*** Titled Tuesday 3|2 Blitz"]
[Site "Chess.com"]
[Date "2016.01.05"]
[Round "6"]
[White "BIG_Pirate"]
[Black "chess960now"]
[Result "1-0"]
[WhiteElo "2203"]
[BlackElo "1963"]
[TimeControl "180+2"]
[EndTime "12:13:57 PST"]
[Termination "BIG_Pirate won by resignation"]

1. Nf3 {[%clk 0:03:01.9]} 1... Nf6 {[%clk 0:02:58.9]} 2. c4 {[%clk 0:03:02.9]}
2... g6 {[%clk 0:02:55.7]} 3. Nc3 {[%clk 0:03:04.1]} 3... d5 {[%clk 0:02:56.1]}
4. g3 {[%clk 0:03:04.8]} 4... d4 {[%clk 0:02:49]} 5. Nb5 {[%clk 0:03:03.4]} 5...
c5 {[%clk 0:02:49.5]} 6. d3 {[%clk 0:03:03.2]} 6... a6 {[%clk 0:02:48.6]} 7. Na3
{[%clk 0:03:03.9]} 7... Nc6 {[%clk 0:02:48.1]} 8. Bg2 {[%clk 0:03:04.3]} 8... e5
{[%clk 0:02:48.4]} 9. O-O {[%clk 0:03:04.6]} 9... Bg7 {[%clk 0:02:49.2]} 10. Bg5
{[%clk 0:02:57.9]} 10... O-O {[%clk 0:02:48.6]} 11. Nc2 {[%clk 0:02:57.8]} 11...
Qd6 {[%clk 0:02:43]} 12. Nd2 {[%clk 0:02:52.5]} 12... Bf5 {[%clk 0:02:39.1]} 13.
Rb1 {[%clk 0:02:52.8]} 13... Rfe8 {[%clk 0:02:27.3]} 14. Bxf6 {[%clk 0:02:53.4]}
14... Bxf6 {[%clk 0:02:25.9]} 15. Ne4 {[%clk 0:02:54.5]} 15... Qe7 {[%clk
0:02:25.4]} 16. Nxf6+ {[%clk 0:02:51.2]} 16... Qxf6 {[%clk 0:02:25.9]} 17. b4
{[%clk 0:02:53.1]} 17... Re7 {[%clk 0:01:16.5]} 18. bxc5 {[%clk 0:02:38.5]}
18... e4 {[%clk 0:01:11.1]} 19. Rb6 {[%clk 0:02:31.5]} 19... Qe5 {[%clk
0:01:03.7]} 20. Nb4 {[%clk 0:01:55.4]} 20... Qxc5 {[%clk 0:00:58.9]} 21. Nxc6
{[%clk 0:01:55.4]} 21... bxc6 {[%clk 0:00:56.6]} 22. Qb3 {[%clk 0:01:54.2]}
22... a5 {[%clk 0:00:31.8]} 23. Rb1 {[%clk 0:01:36.6]} 23... Rae8 {[%clk
0:00:24.2]} 24. Rb8 {[%clk 0:01:08.8]} 24... exd3 {[%clk 0:00:09.7]} 25. Rxe8+
{[%clk 0:01:08.1]} 25... Rxe8 {[%clk 0:00:11.6]} 26. exd3 {[%clk 0:01:09]} 26...
a4 {[%clk 0:00:12.5]} 27. Qd1 {[%clk 0:01:06.9]} 27... Qa3 {[%clk 0:00:10.7]}
28. Bxc6 {[%clk 0:01:04.3]} 28... Re7 {[%clk 0:00:05.6]} 29. Qd2 {[%clk
0:00:22]} 29... Bxd3 {[%clk 0:00:04.7]} 30. Rb8+ {[%clk 0:00:12.8]} 30... Kg7
{[%clk 0:00:04.6]} 31. Bd5 {[%clk 0:00:07.5]} 31... Bf5 {[%clk 0:00:04]} 32. Kg2
{[%clk 0:00:08.2]} 32... Qc3 {[%clk 0:00:05]} 33. Rb2 {[%clk 0:00:05.2]} 33...
Qxd2 {[%clk 0:00:05]} 34. Rxd2 {[%clk 0:00:06.1]} 34... a3 {[%clk 0:00:06.4]}
35. Rxd4 {[%clk 0:00:06.9]} 35... Bb1 {[%clk 0:00:07.2]} 36. c5 {[%clk
0:00:07.6]} 36... Rc7 {[%clk 0:00:08.2]} 37. c6 {[%clk 0:00:08.2]} 37... Kf6
{[%clk 0:00:08.5]} 38. f4 {[%clk 0:00:08.6]} 38... Ke7 {[%clk 0:00:09]} 39. Kf3
{[%clk 0:00:09.6]} 39... f5 {[%clk 0:00:09.9]} 40. Ke3 {[%clk 0:00:10.3]} 40...
Kf6 {[%clk 0:00:10.8]} 41. Kd2 {[%clk 0:00:11]} 41... Ke7 {[%clk 0:00:10.6]} 42.
Kc3 {[%clk 0:00:12]} 42... Be4 {[%clk 0:00:10.1]} 43. Bxe4 {[%clk 0:00:11.9]}
43... fxe4 {[%clk 0:00:12]} 44. Rxe4+ {[%clk 0:00:13.3]} 44... Kd6 {[%clk
0:00:13.9]} 45. Rc4 {[%clk 0:00:14.4]} 45... h5 {[%clk 0:00:12]} 46. Kb4 {[%clk
0:00:14.6]} 46... Kd5 {[%clk 0:00:12.8]} 47. Rc5+ {[%clk 0:00:14.8]} 47... Kd6
{[%clk 0:00:13.2]} 48. Rc3 {[%clk 0:00:14.9]} 48... Kd5 {[%clk 0:00:14.4]} 49.
Kxa3 {[%clk 0:00:16]} 49... Ke4 {[%clk 0:00:14.9]} 50. Kb4 {[%clk 0:00:16.6]}
50... Kd4 {[%clk 0:00:15.8]} 51. Rc4+ {[%clk 0:00:17.2]} 51... Ke3 {[%clk
0:00:16.5]} 52. Kc5 {[%clk 0:00:17.5]} 52... Kf2 {[%clk 0:00:16.8]} 53. Kd6
{[%clk 0:00:16.9]} 1-0